bitfinex/quotes_ETHUSD_20250929
["timestamp","ask_amount","ask_price","bid_price","bid_amount"]
[1759154116712,2.39120038,4182.0,4181.9,0.1192]
[1759154116888,2.85800038,4182.0,4181.9,0.1192]
[1759154117663,6.09780038,4182.0,4181.9,0.1192]
[1759154117887,0.4668,4182.3,4181.7,0.1192]
[1759154118098,2.39115511,4182.1,4181.4,3.356]
[1759154118287,2.39123643,4182.0,4181.9,0.1192]
[1759154118601,5.85803643,4182.0,4181.9,0.1192]
[1759154119014,2.39123643,4182.0,4181.9,0.1192]
[1759154119196,0.02393792,4182.0,4181.4,3.356]
[1759154119499,2.39120038,4182.0,4181.9,0.1192]
[1759154119704,2.4151383,4182.0,4181.9,0.1192]
[1759154120278,0.971368,4182.0,4181.0,3.355]
[1759154120480,0.94743008,4182.0,4181.0,3.355]
[1759154120678,2.39146355,4181.6,4181.0,3.355]
[1759154120891,0.94743008,4182.0,4181.0,3.355]
[1759154121084,2.39171509,4181.1,4181.0,3.355]
[1759154121496,0.94743008,4182.0,4181.0,3.355]
[1759154121879,3.355,4182.5,4181.1,2.41563224]
[1759154122205,0.4668,4182.6,4181.1,0.45491715]
[1759154122380,0.4668,4182.6,4181.8,0.002]
[1759154122581,0.02393792,4182.5,4181.8,0.002]
[1759154122899,3.02393792,4182.5,4181.8,0.002]
[1759154123105,0.5881589,4182.4,4181.8,0.002]
[1759154123271,2.39102885,4182.3,4181.8,0.002]
[1759154123472,2.41496677,4182.3,4181.8,0.002]
[1759154123702,2.39125756,4181.9,4181.8,0.002]
[1759154124406,2.85805756,4181.9,4181.8,0.002]
[1759154124579,2.39077338,4182.8,4181.8,0.002]
[1759154124580,0.4668,4183.1,4181.8,0.002]
[1759154124914,1.00566463,4182.9,4181.9,3.355]
[1759154125102,2.3909213,4182.5,4181.9,3.355]
[1759154125294,2.39091722,4182.5,4181.9,3.355]
[1759154125495,0.02393792,4182.9,4181.9,3.355]
[1759154125693,0.4668,4182.6,4181.9,3.355]
[1759154125898,2.39125756,4181.9,4181.8,0.002]
[1759154126285,2.85805756,4181.9,4181.8,0.002]
[1759154126693,23.00179672,4181.9,4181.8,0.002]
[1759154126901,1.44,4181.7,4179.3,0.302]
[1759154127102,20.96553916,4181.9,4179.3,0.302]
[1759154127103,2.39259186,4179.6,4179.3,0.302]
[1759154127323,3.0,4181.0,4179.3,0.302]
[1759154127324,2.39247408,4179.8,4179.3,0.302]
[1759154127631,0.4668,4180.2,4179.3,0.302]
[1759154127778,2.1466,4180.2,4179.0,0.002]
[1759154127978,2.3928597,4179.1,4179.0,0.002]
[1759154128175,2.39281082,4179.2,4179.0,0.002]
[1759154128493,2.3928597,4179.1,4179.0,0.002]
[1759154128689,0.49073792,4179.7,4179.0,0.002]
[1759154128891,0.51466,4180.1,4179.0,0.002]
[1759154128892,2.39233761,4180.1,4179.0,0.002]
[1759154129120,0.4668,4181.4,4179.1,0.431]
[1759154129414,2.39206431,4180.5,4179.4,2.39268161]
[1759154129710,0.4668,4180.7,4179.4,2.39268794]
[1759154129911,2.39217039,4180.4,4179.5,2.39261912]
[1759154130211,2.39217039,4180.4,4179.3,2.39274393]
[1759154130403,2.39211558,4180.4,4180.3,0.1192]
[1759154130600,3.0,4181.0,4179.0,3.789]
[1759154130915,2.3928597,4179.1,4179.0,0.002]
[1759154131220,0.2398,4182.6,4179.1,0.5679]
[1759154131514,2.3912616,4181.9,4180.1,16.90393916]
[1759154131739,3.0,4182.6,4180.3,2.39217281]
[1759154131880,0.4668,4182.5,4180.4,0.431]
[1759154132081,0.02393792,4182.4,4180.4,0.431]
[1759154132319,0.28816569,4182.3,4181.5,2.39143723]
[1759154132534,2.39102802,4182.4,4181.1,0.431]
[1759154132814,3.0,4182.7,4181.2,0.02391657]
[1759154132978,3.0,4182.7,4181.1,0.431]
[1759154133186,5.24926713,4183.0,4181.2,3.38991657]
[1759154133493,0.02393792,4182.9,4182.0,2.39115588]
[1759154133694,2.41462619,4182.9,4181.8,2.39129401]
[1759154134000,1.36588451,4182.9,4181.8,2.39131455]
[1759154134204,3.73264725,4182.9,4181.2,3.366]
[1759154134400,3.73263828,4182.9,4181.7,2.39132645]
[1759154134606,1.34194659,4182.9,4181.3,0.431]
[1759154134801,2.41467836,4182.9,4181.8,2.39126023]
[1759154134990,2.41463152,4182.9,4181.7,2.39136424]
[1759154135193,0.02393792,4182.9,4181.3,0.431]
[1759154135393,5.24926713,4183.0,4181.4,2.3915435]
[1759154135598,0.02393792,4182.9,4181.3,0.431]
[1759154135793,0.02393792,4182.9,4178.5,2.39518874]
[1759154135794,3.0,4182.7,4180.8,0.02391886]
[1759154136005,0.02393792,4182.6,4180.9,0.431]
[1759154136319,3.43511907,4182.7,4180.9,0.431]
[1759154136320,0.49073792,4182.7,4180.9,0.431]
[1759154136523,2.39136706,4181.8,4180.6,2.39197891]
[1759154136820,2.39137289,4181.7,4180.8,2.39183327]
[1759154137117,0.4668,4182.1,4180.3,3.359]
[1759154137506,0.4668,4182.7,4180.4,0.45492115]
[1759154137706,2.39103127,4182.3,4181.4,2.39150959]
[1759154137907,2.39118676,4182.1,4181.3,2.39159578]
[1759154138218,0.02393792,4182.2,4181.5,2.39148117]
[1759154138423,3.0,4182.6,4180.8,0.431]
[1759154138424,2.39104318,4182.3,4180.8,0.431]
[1759154138601,2.39118427,4182.1,4180.8,0.431]
[1759154138798,0.02393792,4182.2,4181.2,2.39161682]
[1759154139032,3.4668,4182.7,4180.8,0.431]
[1759154139033,2.39118699,4182.1,4181.3,2.39159484]
[1759154139524,2.39118699,4182.1,4180.3,3.359]
[1759154139525,67.17628584,4184.0,4181.4,3.364]
[1759154139687,2.39034414,4183.5,4181.5,3.797]
[1759154140020,0.4614,4183.9,4182.9,2.39068588]
[1759154140219,2.39028812,4183.6,4182.3,0.433]
[1759154140419,0.4614,4183.9,4182.3,0.433]
[1759154140607,0.02393792,4183.8,4182.9,0.1192]
[1759154140840,7.17309586,4183.0,4182.9,0.1192]
[1759154140991,4.78246713,4183.0,4182.9,0.1192]
[1759154144232,4.78246713,4183.0,4182.9,2.50988588]
[1759154144414,4.78246713,4183.0,4182.9,0.1192]
[1759154146132,4.78246713,4183.0,4182.9,2.50988588]
[1759154146514,4.78246713,4183.0,4182.9,0.1192]
[1759154146908,7.17309586,4183.0,4182.9,0.1192]
[1759154147134,8.12945693,4183.0,4182.9,0.1192]
[1759154150605,4.78246713,4183.0,4182.9,0.1192]
[1759154151633,7.17309586,4183.0,4182.9,0.1192]
[1759154151833,4.78246713,4183.0,4182.9,0.1192]
[1759154152042,7.63449586,4183.0,4182.9,0.1192]
[1759154152658,7.17309586,4183.0,4182.9,0.1192]
[1759154154110,7.63449586,4183.0,4182.9,0.1192]
[1759154154844,7.17309586,4183.0,4182.9,0.1192]
[1759154156337,4.78246713,4183.0,4182.9,0.1192]
[1759154157155,7.17309586,4183.0,4182.9,0.1192]
[1759154157321,7.63449586,4183.0,4182.9,0.1192]
[1759154157844,7.17309586,4183.0,4182.9,0.1192]
[1759154158645,4.78246713,4183.0,4182.9,0.1192]
[1759154158835,7.17309586,4183.0,4182.9,0.1192]
[1759154159147,4.78246713,4183.0,4182.9,0.1192]
[1759154159526,7.17309586,4183.0,4182.9,0.1192]
[1759154160299,7.63449586,4183.0,4182.9,0.1192]
[1759154160672,4.78246713,4183.0,4182.9,0.1192]
[1759154160983,7.17309586,4183.0,4182.9,0.1192]
[1759154161286,4.78246713,4183.0,4182.9,0.1192]
[1759154161702,7.17309586,4183.0,4182.9,0.1192]
[1759154161990,7.63449586,4183.0,4182.9,0.1192]
[1759154162155,7.63369586,4183.0,4182.9,0.1192]
[1759154162353,8.63611908,4183.0,4182.9,0.1192]
[1759154162561,2.39097169,4182.4,4182.3,0.002]
[1759154162758,8.76890961,4182.4,4182.3,0.002]
[1759154162994,3.0,4182.3,4180.4,0.002]
[1759154163195,3.0,4181.9,4180.4,0.02592115]
[1759154163412,0.3,4181.9,4180.5,0.433]
[1759154163639,2.39137193,4181.7,4180.4,0.002]
[1759154163931,0.02393792,4181.6,4180.4,0.002]
[1759154164132,0.4614,4181.5,4180.4,0.002]
[1759154164282,2.39160069,4181.3,4180.4,0.002]
[1759154164482,0.93638178,4181.2,4180.4,0.002]
[1759154164719,2.39182951,4180.9,4180.4,0.002]
[1759154165015,2.39171813,4181.1,4180.4,0.002]
[1759154165223,0.02393792,4181.0,4180.4,0.002]
[1759154165406,2.41576743,4180.9,4180.4,0.002]
[1759154165585,3.6515593,4180.9,4180.4,0.002]
[1759154166089,1.25972979,4180.9,4180.4,0.002]
[1759154166398,2.39205836,4180.5,4180.4,1e-08]
[1759154166713,5.76899628,4180.5,4180.4,1e-08]
[1759154166914,3.10095836,4180.5,4180.4,1e-08]
[1759154167077,7.91119359,4180.5,4180.4,1e-08]
[1759154167282,10.30325195,4180.5,4180.4,1e-08]
[1759154168835,6.10095836,4180.5,4180.4,1e-08]
[1759154169119,9.45395836,4180.5,4180.4,1e-08]
[1759154169413,10.24595836,4180.5,4180.4,1e-08]
[1759154169981,6.10095836,4180.5,4180.4,1e-08]
[1759154170315,9.45395836,4180.5,4180.4,1e-08]
[1759154170509,11.43054915,4180.5,4180.4,1e-08]
[1759154170715,7.28554915,4180.5,4180.4,1e-08]
[1759154171096,11.43054915,4180.5,4180.4,1e-08]
[1759154171284,8.07754915,4180.5,4180.4,1e-08]
[1759154171484,7.28554915,4180.5,4180.4,1e-08]
[1759154172195,10.63854915,4180.5,4180.4,1e-08]
[1759154172925,10.63954915,4180.5,4180.4,1e-08]
[1759154173107,7.28554915,4180.5,4180.4,1e-08]
[1759154173711,10.39204915,4180.5,4180.4,1e-08]
[1759154174022,10.63494915,4180.5,4180.4,1e-08]
[1759154174182,11.42694915,4180.5,4180.4,1e-08]
[1759154174389,11.42694915,4180.5,4179.0,0.002]
[1759154174390,2.3928597,4179.1,4179.0,0.002]
[1759154174587,9.01008359,4179.1,4179.0,0.002]
[1759154174826,6.07084567,4179.1,4179.0,0.002]
[1759154175136,8.98614567,4179.1,4179.0,0.002]
[1759154175334,8.7468597,4179.1,4179.0,0.002]
[1759154175535,5.3928597,4179.1,4179.0,0.002]
[1759154175733,2.3928597,4179.1,4179.0,0.002]
[1759154176030,2.39273276,4179.4,4179.0,0.002]
[1759154176230,3.354,4179.5,4179.0,0.002]
[1759154176521,2.3928597,4179.1,4179.0,0.002]
[1759154176721,2.39244743,4179.9,4179.0,0.002]
[1759154176942,2.39263106,4179.5,4179.0,0.002]
[1759154177092,2.3928359,4179.2,4179.0,0.002]
[1759154177401,2.3928597,4179.1,4179.0,0.002]
[1759154177614,0.4387,4179.5,4179.0,0.002]
[1759154177852,3.0,4179.9,4179.0,0.002]
[1759154178135,3.0,4180.1,4179.1,0.6004]
[1759154178136,2.39233709,4180.1,4179.1,0.6004]
[1759154178288,0.07,4180.3,4179.1,0.6004]
[1759154178489,3.0,4180.2,4179.3,2.39274495]
[1759154178690,0.4124,4180.3,4179.1,0.6004]
[1759154178691,0.07,4180.3,4179.1,0.62432859]
[1759154178891,0.07,4180.8,4179.2,2.85430245]
[1759154179131,2.39228837,4180.1,4179.4,2.39263444]
[1759154179331,0.001,4180.5,4179.3,0.4615]
[1759154179539,2.39217281,4180.3,4179.0,0.002]
[1759154179704,3.37793792,4180.2,4179.0,0.002]
[1759154180629,2.39235253,4180.0,4179.2,2.39279783]
[1759154180796,2.39244859,4179.9,4179.1,2.85434276]
[1759154180995,6.354,4180.3,4179.1,0.4615]
[1759154181189,2.39257004,4179.7,4179.1,0.4615]
[1759154181638,2.41652719,4179.6,4179.0,0.002]
[1759154181839,0.02393792,4179.6,4179.0,0.002]
[1759154182179,0.02393792,4179.9,4179.0,0.002]
[1759154182293,2.3926349,4179.5,4179.0,0.002]
[1759154182496,0.5087,4180.8,4179.7,2.39248495]
[1759154182694,0.5087,4180.8,4179.1,0.6004]
[1759154182695,0.07,4180.8,4179.6,0.4615]
[1759154182943,2.39211558,4180.4,4179.6,0.4615]
[1759154183099,0.07,4180.8,4180.1,2.39223056]
[1759154183464,0.07,4180.8,4180.4,2.39211558]
[1759154183758,0.07,4180.8,4179.4,0.4615]
[1759154183959,2.39200401,4180.6,4179.9,2.3924014]
[1759154184109,2.39200401,4180.6,4179.8,0.4615]
[1759154184110,2.39200401,4180.6,4179.8,2.85394571]
[1759154184459,2.39306548,4180.5,4180.4,0.1192]
[1759154184635,0.001,4180.5,4180.4,0.1192]
[1759154185312,2.41699628,4180.5,4180.4,0.1192]
[1759154185567,4.49443394,4180.5,4179.0,0.002]
[1759154185858,4.49443394,4180.5,4179.0,2.39486559]
[1759154185859,3.0,4180.3,4179.0,2.39486559]
[1759154186064,2.39241119,4179.9,4179.0,0.002]
[1759154186224,0.02393792,4179.8,4179.0,0.002]
[1759154186427,2.39228726,4180.1,4179.0,0.002]
[1759154186641,2.4162897,4180.0,4179.0,0.002]
[1759154186836,1.15762005,4180.1,4179.1,2.39281682]
[1759154187041,1.51,4180.8,4179.2,0.02392802]
[1759154187042,0.0002,4180.5,4179.2,0.02392802]
[1759154187334,0.0002,4180.5,4179.3,0.02392745]
[1759154187534,0.0002,4180.5,4179.2,0.4615]
[1759154187777,0.0002,4180.5,4179.6,2.39001762]
[1759154188067,0.0002,4180.5,4179.7,2.39250826]
[1759154188225,0.0002,4180.5,4179.8,2.41638285]
[1759154188431,0.0002,4180.5,4179.6,2.39251878]
[1759154188625,0.0002,4180.5,4179.6,2.39257345]
[1759154188846,0.0002,4180.5,4179.7,2.39249504]
[1759154189037,0.0002,4180.5,4179.5,0.4615]
[1759154189437,0.0002,4180.5,4179.1,0.1389]
[1759154190030,0.0002,4180.5,4179.0,0.4635]
[1759154190031,2.39215529,4180.4,4179.3,2.39272377]
[1759154190231,0.0002,4180.5,4179.4,0.48542687]
[1759154190422,0.0002,4180.5,4180.4,2.39211558]
[1759154190927,0.0002,4180.5,4180.4,3.01643673]
[1759154191253,0.0002,4180.5,4180.4,2.99251558]
[1759154191962,0.06062884,4180.8,4180.7,2.39194393]
[1759154192138,0.06062884,4180.8,4180.4,0.4615]
[1759154192338,0.06062884,4180.8,4180.2,3.352]
[1759154192550,0.06062884,4180.8,4180.3,2.39217281]
[1759154192754,0.06062884,4180.8,4180.2,5.74420833]
[1759154192949,0.06062884,4180.8,4180.2,3.352]
[1759154193266,0.06062884,4180.8,4180.5,2.39205472]
[1759154193421,0.06062884,4180.8,4180.2,3.352]
[1759154193626,0.05062884,4180.8,4180.2,3.352]
[1759154194254,0.05062884,4180.8,4179.7,2.39251484]
[1759154194255,2.39200265,4180.6,4179.7,2.3925162]
[1759154194459,2.39200265,4180.6,4179.6,3.351]
[1759154194460,2.41600506,4180.5,4179.6,3.351]
[1759154194634,2.39227236,4180.2,4179.6,3.351]
[1759154194838,2.39213438,4180.4,4179.0,2.39487027]
[1759154195363,0.2429,4180.5,4179.1,0.02392859]
[1759154195564,0.24665694,4180.6,4180.3,0.1192]
[1759154195727,2.39211558,4180.4,4180.3,0.1192]
[1759154195923,0.24665694,4180.6,4180.3,0.1192]
[1759154196165,2.4160107,4180.5,4180.3,0.1192]
[1759154196460,2.41599958,4180.5,4180.3,0.1192]
[1759154196661,2.39211558,4180.4,4180.3,0.1192]
[1759154197363,2.83081558,4180.4,4180.3,0.1192]
[1759154197577,3.07371558,4180.4,4180.3,0.1192]
[1759154197743,1.2305664,4180.4,4180.3,0.1192]
[1759154197926,3.62268198,4180.4,4180.3,0.1192]
[1759154199343,2.392412,4179.9,4179.0,2.41880394]
[1759154199536,2.39246433,4179.8,4179.0,2.41880394]
[1759154199892,2.39255491,4179.7,4179.0,0.002]
[1759154200268,2.39255491,4179.7,4179.6,0.1192]
[1759154200468,0.4701,4180.0,4179.6,0.1192]
[1759154200773,2.39241368,4179.9,4179.6,0.1192]
[1759154200994,6.35,4180.5,4179.0,2.39488641]
[1759154200995,0.29312884,4180.8,4179.0,0.49572916]
[1759154201282,2.39217281,4180.3,4179.9,0.1192]
[1759154201487,2.3928597,4179.1,4179.0,0.002]
[1759154201649,2.39274519,4179.3,4179.0,0.002]
[1759154201992,2.3928597,4179.1,4179.0,0.002]
[1759154202277,0.7116,4179.1,4179.0,0.002]
[1759154202482,3.1044597,4179.1,4179.0,0.1212]
[1759154202777,3.65418173,4179.1,4179.0,0.1212]
[1759154202937,3.67811965,4179.1,4179.0,0.1212]
[1759154203132,0.54972203,4179.1,4179.0,0.1212]
[1759154203362,2.3928597,4179.1,4179.0,0.1212]
[1759154203672,3.1044597,4179.1,4179.0,0.1212]
[1759154204046,2.3928597,4179.1,4179.0,0.1212]
[1759154204437,0.2415,4179.6,4179.0,0.1212]
[1759154204638,0.57421728,4180.2,4179.5,0.1192]
[1759154204865,3.0,4180.0,4179.9,0.1192]
[1759154205080,5.86244449,4180.0,4179.9,0.1192]
[1759154205414,5.86244449,4180.0,4179.0,0.002]
[1759154205415,2.39280274,4179.2,4179.0,0.002]
[1759154205585,2.3928597,4179.1,4179.0,0.002]
[1759154205787,2.39282008,4179.2,4179.0,0.002]
[1759154206110,2.41679762,4179.1,4179.0,0.002]
[1759154206688,2.3928597,4179.1,4179.0,0.002]
[1759154207202,2.39281412,4179.2,4179.0,0.002]
[1759154207503,2.3928597,4179.1,4179.0,0.002]
[1759154207801,0.02393792,4179.1,4179.0,0.002]
[1759154207982,2.3928597,4179.1,4179.0,0.002]
[1759154208606,2.41679762,4179.1,4179.0,0.002]
[1759154209184,3.6093531,4179.1,4179.0,0.002]
[1759154209590,0.3,4179.6,4179.0,0.002]
[1759154209904,2.3928597,4179.1,4179.0,0.002]
[1759154210206,2.41679762,4179.1,4179.0,0.002]
[1759154210387,2.3928597,4179.1,4179.0,0.002]
[1759154210899,3.8328597,4179.1,4179.0,0.002]
[1759154211209,3.348,4179.6,4179.0,0.002]
[1759154211410,3.0,4179.5,4179.0,0.002]
[1759154211704,3.57404946,4179.6,4179.0,0.002]
[1759154211887,2.3928597,4179.1,4179.0,0.002]
[1759154212084,2.3920597,4179.1,4179.0,0.002]
[1759154213579,3.12509762,4179.1,4179.0,0.002]
[1759154213780,3.53209409,4179.1,4179.0,0.002]
[1759154213983,0.57404946,4179.6,4179.0,0.002]
[1759154214170,2.3928597,4179.1,4179.0,0.002]
[1759154214379,2.41679762,4179.1,4179.0,0.002]
[1759154214871,0.4701,4179.8,4179.0,0.002]
[1759154214872,0.2415,4180.2,4179.0,0.002]
[1759154215084,2.39280731,4179.2,4179.0,0.002]
[1759154215375,2.41679762,4179.1,4179.0,0.002]
[1759154215775,2.41679762,4179.1,4179.0,0.1212]
[1759154216014,2.39269017,4179.4,4179.0,0.1212]
[1759154216185,0.02393792,4179.3,4179.0,0.002]
[1759154216397,2.39279114,4179.3,4179.2,0.1192]
[1759154217178,1.0,4180.0,4179.9,2.39240173]
[1759154217378,0.05162884,4180.8,4180.7,2.39194393]
[1759154217578,0.05162884,4180.8,4180.7,5.73894393]
[1759154217810,0.05162884,4180.8,4180.7,19.55165134]
[1759154218111,0.001,4181.0,4180.9,2.39182951]
[1759154218815,0.001,4181.7,4181.6,2.39142911]
[1759154219111,0.001,4181.7,4181.6,16.20413652]
[1759154219772,0.001,4181.7,4181.6,19.55013652]
[1759154220202,0.001,4181.7,4181.6,5.73742911]
[1759154221108,0.001,4181.7,4181.6,3.346]
[1759154221322,0.001,4181.7,4181.6,5.73742911]
[1759154221525,0.001,4181.7,4181.6,3.346]
[1759154221710,0.001,4181.7,4181.6,5.73742911]
[1759154222108,0.001,4181.7,4181.6,3.346]
[1759154223005,0.001,4181.7,4181.6,5.73742911]
[1759154224119,0.001,4181.7,4181.6,3.346]
[1759154224317,0.001,4181.7,4181.6,5.73742911]
[1759154225391,0.001,4181.7,4181.6,3.346]
[1759154226519,0.001,4181.7,4181.6,5.73742911]
[1759154227115,0.001,4181.7,4181.6,5.85662911]
[1759154227490,0.001,4181.7,4181.6,3.4652]
[1759154227714,0.001,4181.7,4181.6,5.85662911]
[1759154228829,0.001,4181.7,4181.6,3.4652]
[1759154229541,0.001,4181.7,4181.6,5.85662911]
[1759154231336,0.001,4181.7,4181.6,3.4652]
[1759154231637,0.001,4181.7,4181.6,5.85662911]
[1759154232329,0.001,4181.7,4181.6,3.4652]
[1759154232625,0.001,4181.7,4181.6,5.85662911]
[1759154233720,0.001,4181.7,4181.6,19.55013652]
[1759154234102,0.001,4181.7,4181.6,5.73742911]
[1759154235449,0.001,4182.6,4182.5,2.39091452]
[1759154235650,0.4353,4184.8,4182.5,17.15270741]
[1759154235825,0.4353,4184.8,4183.9,2.39011448]
[1759154236016,0.4353,4184.8,4183.9,5.73011448]
[1759154236222,0.4353,4185.2,4183.9,26.90952783]
[1759154237018,66.80049401,4184.0,4183.9,26.90952783]
[1759154237226,66.80049401,4184.0,4183.9,5.73011448]
[1759154239836,66.80049401,4184.0,4183.9,26.90952783]
[1759154243234,66.80049401,4184.0,4183.9,5.73011448]
[1759154243957,66.80049401,4184.0,4183.9,5.84931448]
[1759154246024,0.4353,4185.6,4183.9,5.84931448]
[1759154246025,0.4353,4185.6,4183.9,3.4592]
[1759154246229,0.84213685,4185.7,4185.5,0.1192]
[1759154246473,0.84213685,4185.7,4185.6,3.35889143]
[1759154246676,0.84213685,4185.7,4185.6,5.72414373]
[1759154246855,0.84213685,4185.7,4185.6,3.335]
[1759154247052,1.52233685,4185.7,4185.6,3.335]
[1759154247365,5.72290191,4187.8,4185.6,3.335]
[1759154247366,3.0,4188.1,4185.8,3.0]
[1759154247542,2.96,4188.1,4187.1,21.17941335]
[1759154247874,0.6802,4188.0,4187.2,3.54664046]
[1759154248171,2.96,4188.1,4187.3,3.54664046]
[1759154248330,0.2449,4188.0,4187.4,0.21264046]
[1759154248541,0.6802,4188.0,4187.5,0.21264046]
[1759154248863,2.96,4188.1,4187.6,3.54664046]
[1759154248864,0.6802,4187.9,4187.6,3.54664046]
[1759154249162,0.02393792,4187.8,4187.4,3.334]
[1759154249460,0.6802,4187.8,4187.4,3.334]
[1759154249663,0.6802,4187.7,4187.4,3.334]
[1759154249967,0.98700869,4187.6,4187.4,3.334]
[1759154250166,0.36402,4188.0,4187.4,3.334]
[1759154250375,0.6802,4187.5,4187.4,3.334]
[1759154251083,2.96,4188.1,4187.4,3.334]
[1759154251231,2.96,4188.1,4187.6,2.38796559]
[1759154251437,2.96,4188.1,4187.4,3.334]
[1759154251662,2.96,4188.1,4188.0,2.38777459]
[1759154251863,2.96,4188.1,4188.0,3.333]
[1759154252435,2.96,4188.1,4188.0,5.72077459]
[1759154252650,2.96,4188.1,4188.0,3.333]
[1759154252845,2.96,4188.1,4188.0,5.72077459]
[1759154253285,2.96,4188.1,4188.0,3.333]
[1759154253877,3.0,4190.1,4189.9,2.3866918]
[1759154254110,0.4353,4193.0,4190.1,2.38657788]
[1759154254311,0.4353,4193.0,4189.9,27.11090515]
[1759154254312,0.4353,4193.0,4191.4,21.17941335]
[1759154254478,0.4353,4193.0,4191.5,3.3558578]
[1759154254679,0.4353,4193.6,4192.0,23.56490953]
[1759154254868,3.0,4194.2,4192.0,5.70934808]
[1759154255074,3.0,4194.2,4192.0,3.81655383]
[1759154255270,3.0,4194.2,4192.0,5.68670795]
[1759154255496,0.6802,4192.8,4189.9,2.38914397]
[1759154255705,0.6802,4192.7,4190.5,21.17941335]
[1759154255910,0.2449,4193.4,4191.0,21.17941335]
[1759154256232,0.7051119,4194.2,4192.1,0.792]
[1759154256374,0.7051119,4194.2,4193.3,21.17941335]
[1759154256577,0.2051119,4194.2,4193.0,3.361]
[1759154256804,0.6802,4194.1,4193.0,3.361]
[1759154257005,5.38441546,4193.9,4193.8,0.1192]
[1759154257206,5.38441546,4193.9,4192.5,3.365]
[1759154257207,1.54560505,4193.9,4192.5,3.365]
[1759154257525,21.17941335,4193.2,4188.5,1.0]
[1759154257725,0.6802,4193.1,4189.9,3.364]
[1759154258006,0.6802,4193.0,4189.9,3.364]
[1759154258171,0.6802,4192.9,4190.4,0.792]
[1759154258372,0.3065077,4192.8,4190.6,0.792]
[1759154258577,0.2449,4193.8,4192.6,2.38514117]
[1759154258772,0.2449,4194.7,4192.7,3.39585097]
[1759154259010,2.38413453,4194.4,4192.9,2.38497983]
[1759154259207,2.38396131,4194.7,4192.7,3.372]
[1759154259395,0.2474,4194.4,4192.7,5.75707988]
[1759154259595,0.6755,4194.4,4192.7,3.372]
[1759154260004,0.6755,4194.1,4192.7,3.372]
[1759154260198,0.6755,4194.0,4192.7,3.372]
[1759154260396,2.3843454,4194.1,4192.7,3.372]
[1759154260397,2.38447231,4193.8,4192.7,3.372]
[1759154260707,0.6755,4193.7,4192.0,3.372]
[1759154260908,1.52123045,4193.6,4192.1,3.39585439]
[1759154261112,3.06014636,4193.5,4192.1,3.39585439]
[1759154261275,2.38516595,4192.6,4192.2,0.02385382]
[1759154261476,0.6755,4193.4,4192.2,0.02385382]
[1759154261676,0.4281,4192.5,4192.2,0.02385382]
[1759154261877,0.4273,4192.5,4192.1,3.372]
[1759154262096,2.38538237,4192.2,4190.4,0.0008]
[1759154262295,0.26327824,4192.1,4191.0,2.38606201]
[1759154262616,0.2474,4192.0,4190.5,3.37]
[1759154262818,2.38555309,4191.9,4190.5,3.37]
[1759154262977,2.63291462,4192.0,4190.6,2.38629313]
[1759154263176,2.63291462,4192.0,4190.5,3.37]
[1759154263177,2.6329126,4192.0,4190.5,3.37]
[1759154263518,0.26329126,4191.9,4190.5,3.37]
[1759154263717,0.2474,4192.0,4190.8,2.38612841]
[1759154263918,0.6755,4192.6,4191.7,2.38565041]
[1759154264080,0.6755,4192.6,4191.8,5.75160791]
[1759154264409,0.6755,4192.6,4190.4,2.38636788]
[1759154264410,0.2474,4193.1,4191.9,3.366]
[1759154264615,0.4281,4193.0,4192.0,3.366]
[1759154264800,0.2474,4192.9,4192.1,3.57407615]
[1759154265002,0.2474,4192.9,4192.2,0.20807615]
[1759154265320,0.2474,4192.9,4192.3,0.20807615]
[1759154265621,0.2474,4192.9,4192.1,3.366]
[1759154265622,0.2474,4194.1,4192.4,0.20807615]
[1759154265831,0.4281,4194.0,4192.5,0.20807615]
[1759154266115,0.4281,4194.0,4192.6,0.20807615]
[1759154266424,0.2474,4193.9,4192.7,0.20807615]
[1759154266614,0.4281,4193.8,4192.8,0.20807615]
[1759154266789,2.38458603,4193.6,4192.9,0.20807615]
[1759154266992,0.9815086,4193.5,4192.1,3.85360113]
[1759154267325,0.6755,4193.4,4193.3,0.1192]
[1759154267492,3.0,4193.0,4192.1,0.002]
[1759154267677,3.0,4193.0,4189.6,21.17941335]
[1759154267678,3.0,4192.5,4189.1,0.0021]
[1759154267882,2.38561,4191.8,4191.7,0.002]
[1759154268279,3.0,4191.7,4190.1,0.49]
[1759154268479,2.38583766,4191.4,4191.3,0.002]
[1759154268714,0.6755,4191.6,4190.2,0.0238652]
[1759154268918,0.6755,4191.6,4190.3,0.20869953]
[1759154269084,2.38616977,4190.9,4190.4,0.2325636]
[1759154269412,0.6755,4190.8,4190.5,0.20869953]
[1759154269611,2.38623618,4190.7,4190.6,0.20869953]
[1759154269814,2.38630531,4190.6,4190.2,0.20902864]
[1759154270020,0.38868022,4190.7,4190.3,0.23289327]
[1759154270237,3.0,4191.6,4190.4,0.20902864]
[1759154270542,2.38629313,4190.6,4190.5,0.00028432]
[1759154270732,5.38629313,4190.6,4190.5,0.00028432]
[1759154271018,3.0,4190.7,4188.6,0.25307432]
[1759154271229,2.38657785,4190.2,4188.6,0.7096507]
[1759154271433,2.38657788,4190.1,4188.6,0.2292]
[1759154271717,2.38662523,4190.1,4188.9,2.38720823]
[1759154271915,0.23865779,4190.2,4188.6,0.2292]
[1759154272119,2.38691301,4189.6,4188.6,0.2292]
[1759154272454,2.38694212,4189.5,4188.6,0.2292]
[1759154272618,0.2474,4190.1,4188.6,0.2292]
[1759154273129,2.38663484,4190.0,4188.5,3.365]
[1759154273441,0.2474,4190.1,4188.5,3.365]
[1759154273586,0.4281,4190.0,4188.5,3.365]
[1759154273780,0.30621263,4189.9,4188.5,3.365]
[1759154273988,0.4281,4190.0,4188.5,3.365]
[1759154273989,2.38703878,4189.3,4188.5,3.365]